bitfinex/quotes_BTCUSD_20241102
["timestamp","ask_amount","ask_price","bid_price","bid_amount"]
[1730567615627,0.60958548,69518.0,69517.0,0.40149323]
[1730567615840,0.60958548,69518.0,69517.0,0.40649323]
[1730567616261,0.60958548,69518.0,69517.0,0.53056409]
[1730567616466,0.60958548,69518.0,69517.0,0.53556409]
[1730567619195,0.60958548,69518.0,69517.0,0.40649323]
[1730567619659,0.60958548,69518.0,69517.0,0.53556562]
[1730567619865,0.60958548,69518.0,69517.0,0.40649323]
[1730567620243,0.60958548,69518.0,69517.0,0.53556354]
[1730567620721,0.60958548,69518.0,69517.0,0.53056354]
[1730567621019,0.60958548,69518.0,69517.0,0.53556354]
[1730567621745,0.60958548,69518.0,69517.0,0.40649323]
[1730567622071,0.60958548,69518.0,69517.0,0.40149323]
[1730567622277,0.60958548,69518.0,69517.0,0.53557187]
[1730567622692,0.60958548,69518.0,69517.0,0.40649323]
[1730567622913,0.60958548,69518.0,69517.0,0.53057498]
[1730567623098,0.60958548,69518.0,69517.0,0.53557498]
[1730567623300,0.60958548,69518.0,69517.0,0.40649323]
[1730567625186,0.60958548,69518.0,69517.0,0.51619213]
[1730567626613,0.52778548,69518.0,69517.0,0.51619213]
[1730567627291,0.52778548,69518.0,69517.0,0.3574586]
[1730567627492,0.52778548,69518.0,69517.0,0.51629561]
[1730567629551,0.52778548,69518.0,69517.0,0.3574586]
[1730567630328,0.52778548,69518.0,69517.0,0.3524586]
[1730567630551,0.52778548,69518.0,69517.0,0.3574586]
[1730567630755,0.52778548,69518.0,69517.0,0.2477597]
[1730567632775,0.52778548,69518.0,69517.0,0.2427597]
[1730567633427,0.52778548,69518.0,69517.0,0.2477597]
[1730567634561,0.52778548,69518.0,69517.0,0.53571363]
[1730567635210,0.52778548,69518.0,69517.0,0.53070661]
[1730567635403,0.52778548,69518.0,69517.0,0.40160957]
[1730567635671,0.52778548,69518.0,69517.0,0.37318487]
[1730567635874,0.61856643,69518.0,69517.0,0.37318487]
[1730567636709,0.61856499,69518.0,69517.0,0.37318487]
[1730567638216,0.61856378,69518.0,69517.0,0.37318487]
[1730567639519,0.60508548,69518.0,69517.0,0.37318487]
[1730567639728,0.61856186,69518.0,69517.0,0.214335]
[1730567639936,0.61856186,69518.0,69517.0,0.37317946]
[1730567641463,0.61856205,69518.0,69517.0,0.37317946]
[1730567644131,0.60508548,69518.0,69517.0,0.37317946]
[1730567644347,0.61856072,69518.0,69517.0,0.37317946]
[1730567647618,0.61856072,69518.0,69517.0,0.3731644]
[1730567651453,0.60508548,69518.0,69517.0,0.3731644]
[1730567652271,0.52778548,69518.0,69517.0,0.3731644]
[1730567655259,0.54125843,69518.0,69517.0,0.3731644]
[1730567655470,0.52778548,69518.0,69517.0,0.3731644]
[1730567656982,0.52778548,69518.0,69517.0,0.37313132]
[1730567661450,0.52778548,69518.0,69517.0,0.37313907]
[1730567666084,0.52778548,69518.0,69517.0,0.3731506]
[1730567666646,0.43158548,69518.0,69517.0,0.3961506]
[1730567670662,0.43158548,69518.0,69517.0,0.39617126]
[1730567674427,0.43158548,69518.0,69517.0,0.54051291]
[1730567674646,0.43158548,69518.0,69517.0,0.53962651]
[1730567676482,0.43158548,69518.0,69517.0,0.54462651]
[1730567677093,0.43158548,69518.0,69517.0,0.53962651]
[1730567677310,0.43158548,69518.0,69517.0,0.54462651]
[1730567677918,0.43158548,69518.0,69517.0,0.53962651]
[1730567678119,0.43158548,69518.0,69517.0,0.54462651]
[1730567678528,0.43158548,69518.0,69517.0,0.53962651]
[1730567678952,0.43158548,69518.0,69517.0,0.54462651]
[1730567679940,0.43158548,69518.0,69517.0,0.53962651]
[1730567680145,0.43158548,69518.0,69517.0,0.54462651]
[1730567681205,0.43158548,69518.0,69517.0,0.53962651]
[1730567681411,0.43158548,69518.0,69517.0,0.54462651]
[1730567682162,0.43158548,69518.0,69517.0,0.53962651]
[1730567682772,0.43158548,69518.0,69517.0,0.54462651]
[1730567683784,0.43158548,69518.0,69517.0,0.53962651]
[1730567683997,0.43158548,69518.0,69517.0,0.54462651]
[1730567684365,0.43158548,69518.0,69517.0,0.54446605]
[1730567685449,0.43158548,69518.0,69517.0,0.4060108]
[1730567686123,0.43158548,69518.0,69517.0,0.3960108]
[1730567686348,0.43158548,69518.0,69517.0,0.4010108]
[1730567686573,0.43158548,69518.0,69517.0,0.4060108]
[1730567687890,0.43158548,69518.0,69517.0,0.4010108]
[1730567688361,0.43158548,69518.0,69517.0,0.4060108]
[1730567688579,0.43158548,69518.0,69517.0,0.4010108]
[1730567688816,0.43158548,69518.0,69517.0,0.4060108]
[1730567689034,0.43158548,69518.0,69517.0,0.40599845]
[1730567690839,0.43158548,69518.0,69517.0,0.40099845]
[1730567691068,0.43158548,69518.0,69517.0,0.39599845]
[1730567691493,0.43158548,69518.0,69517.0,0.40099937]
[1730567691694,0.43158548,69518.0,69517.0,0.39599937]
[1730567692130,0.43158548,69518.0,69517.0,0.40099937]
[1730567692766,0.43158548,69518.0,69517.0,0.39599937]
[1730567693186,0.43158548,69518.0,69517.0,0.242335]
[1730567693791,0.52168548,69518.0,69517.0,0.237335]
[1730567694024,0.52168548,69518.0,69517.0,0.242335]
[1730567694746,0.52168548,69518.0,69517.0,0.237335]
[1730567694956,0.52168548,69518.0,69517.0,0.242335]
[1730567695155,0.52168548,69518.0,69517.0,0.237335]
[1730567695820,0.52168548,69518.0,69517.0,0.242335]
[1730567696221,0.52168548,69518.0,69517.0,0.237335]
[1730567696430,0.52168548,69518.0,69517.0,0.242335]
[1730567696597,0.52168548,69518.0,69517.0,0.3470339]
[1730567696797,0.52168548,69518.0,69517.0,0.3520339]
[1730567697077,0.52168548,69518.0,69517.0,0.3470339]
[1730567697205,0.60058548,69518.0,69517.0,0.214335]
[1730567698306,0.61406001,69518.0,69517.0,0.214335]
[1730567698518,0.60058548,69518.0,69517.0,0.214335]
[1730567699142,0.61405837,69518.0,69517.0,0.214335]
[1730567699353,0.60058548,69518.0,69517.0,0.214335]
[1730567700187,0.61405679,69518.0,69517.0,0.214335]
[1730567700393,0.61405729,69518.0,69517.0,0.214335]
[1730567700606,0.61405739,69518.0,69517.0,0.214335]
[1730567701161,0.61405739,69518.0,69517.0,0.212335]
[1730567702754,0.60058548,69518.0,69517.0,0.207335]
[1730567702984,0.61405213,69518.0,69517.0,0.212335]
[1730567703202,0.61405213,69518.0,69517.0,0.37305728]
[1730567703992,0.61405213,69518.0,69517.0,0.4570421]
[1730567704197,0.61405032,69518.0,69517.0,0.4470431]
[1730567704377,0.61405032,69518.0,69517.0,0.37104902]
[1730567704584,0.61405032,69518.0,69517.0,0.37304902]
[1730567704839,0.61405032,69518.0,69517.0,0.36804902]
[1730567705256,0.61405032,69518.0,69517.0,0.37304902]
[1730567705450,0.61405032,69518.0,69517.0,0.43753637]
[1730567705653,0.61405032,69518.0,69517.0,0.42553737]
[1730567705866,0.61405032,69518.0,69517.0,0.202336]
[1730567706243,0.60058548,69518.0,69517.0,0.207335]
[1730567706444,0.61404669,69518.0,69517.0,0.212335]
[1730567706648,0.62750622,69518.0,69517.0,0.212335]
[1730567707160,0.61404501,69518.0,69517.0,0.212335]
[1730567708467,0.68614501,69518.0,69517.0,0.207335]
[1730567709552,0.68614501,69518.0,69517.0,0.25531685]
[1730567709789,0.61404501,69518.0,69517.0,0.25531685]
[1730567710007,0.61404501,69518.0,69517.0,0.14462385]
[1730567710191,0.61404501,69518.0,69517.0,0.14531785]
[1730567710426,0.61404501,69518.0,69517.0,0.202336]
[1730567710633,0.61404133,69518.0,69517.0,0.101642]
[1730567710861,0.75249658,69518.0,69517.0,0.101642]
[1730567711129,0.96288848,69518.0,69517.0,0.101642]
[1730567711351,0.85318958,69518.0,69517.0,0.101642]
[1730567711569,0.75249658,69518.0,69517.0,0.001642]
[1730567712647,0.85318958,69518.0,69517.0,0.001642]
[1730567713529,0.83973373,69518.0,69517.0,0.001642]
[1730567713745,0.96288351,69518.0,69517.0,0.001642]
[1730567717670,0.96288153,69518.0,69517.0,0.001642]
[1730567719260,0.96288124,69518.0,69517.0,0.001642]
[1730567720558,0.96288169,69518.0,69517.0,0.001642]
[1730567721173,0.96288167,69518.0,69517.0,0.001642]
[1730567725099,0.94943263,69518.0,69517.0,0.001642]
[1730567725308,0.96288608,69518.0,69517.0,0.001642]
[1730567729152,0.96289169,69518.0,69517.0,0.001642]
[1730567729584,0.96289255,69518.0,69517.0,0.001642]
[1730567732488,0.94943263,69518.0,69517.0,0.001642]
[1730567732745,0.96289383,69518.0,69517.0,0.001642]
[1730567735413,1.21107003,69518.0,69517.0,0.001642]
[1730567735581,1.10137113,69518.0,69517.0,0.001642]
[1730567735778,0.96289383,69518.0,69517.0,0.001642]
[1730567736299,0.94943263,69518.0,69517.0,0.001642]
[1730567736681,0.96289863,69518.0,69517.0,0.001642]
[1730567737667,0.96828622,69518.0,69517.0,0.001642]
[1730567739215,1.07798512,69518.0,69517.0,0.001642]
[1730567740271,1.06451912,69518.0,69517.0,0.001642]
[1730567740493,1.07798583,69518.0,69517.0,0.001642]
[1730567740703,1.091454,69518.0,69517.0,0.001642]
[1730567742148,1.13631577,69518.0,69517.0,0.001642]
[1730567742354,1.13621599,69518.0,69517.0,0.001642]
[1730567743633,1.12274928,69518.0,69517.0,0.001642]
[1730567743760,1.13620815,69518.0,69517.0,0.001642]
[1730567750294,1.12273998,69518.0,69517.0,0.001642]
[1730567750919,1.10928111,69518.0,69517.0,0.001642]
[1730567751143,1.26120789,69518.0,69517.0,0.001642]
[1730567751562,1.28272723,69518.0,69517.0,0.001642]
[1730567752193,1.28272723,69518.0,69500.0,0.21654552]
[1730567752194,0.3879159,69501.0,69500.0,0.21654552]
[1730567752396,0.99200467,69501.0,69500.0,0.21654552]
[1730567752626,0.100719,69500.0,69499.0,0.001642]
[1730567752860,0.70480777,69500.0,69499.0,0.001642]
[1730567755092,0.70480092,69500.0,69499.0,0.001642]
[1730567756409,0.70479824,69500.0,69499.0,0.001642]
[1730567756677,0.91369714,69500.0,69499.0,0.001642]
[1730567757107,0.99199714,69500.0,69499.0,0.001642]
[1730567758823,0.95703785,69500.0,69499.0,0.001642]
[1730567759029,0.99199612,69500.0,69499.0,0.001642]
[1730567760535,1.13047342,69500.0,69499.0,0.001642]
[1730567761302,0.99199612,69500.0,69499.0,0.001642]
[1730567761640,0.99200195,69500.0,69499.0,0.001642]
[1730567762295,0.99200579,69500.0,69499.0,0.001642]
[1730567764038,1.10170469,69500.0,69499.0,0.001642]
[1730567764426,1.10170469,69500.0,69496.0,0.001642]
[1730567764427,0.100723,69497.0,69496.0,0.001642]
[1730567764634,1.18988886,69497.0,69496.0,0.001642]
[1730567765258,1.18989188,69497.0,69496.0,0.001642]
[1730567765469,1.23469947,69497.0,69496.0,0.001642]
[1730567765676,1.25622245,69497.0,69496.0,0.001642]
[1730567765941,1.39469975,69497.0,69496.0,0.001642]
[1730567766333,1.34989217,69497.0,69496.0,0.001642]
[1730567766769,1.24019327,69497.0,69496.0,0.001642]
[1730567769175,1.24016922,69497.0,69496.0,0.001642]
[1730567770588,1.26343514,69497.0,69496.0,0.001642]
[1730567770988,1.21866081,69497.0,69496.0,0.001642]
[1730567773023,1.21865646,69497.0,69496.0,0.001642]
[1730567773284,1.20521805,69497.0,69496.0,0.001642]
[1730567773518,1.21865534,69497.0,69496.0,0.001642]
[1730567774333,1.26341405,69497.0,69496.0,0.001642]
[1730567775304,1.41471405,69497.0,69496.0,0.001642]
[1730567776352,1.12493675,69497.0,69496.0,0.001642]
[1730567776613,0.97047914,69497.0,69496.0,0.001642]
[1730567776848,0.79297914,69497.0,69496.0,0.001642]
[1730567780008,0.77954185,69497.0,69496.0,0.001642]
[1730567780218,0.79298602,69497.0,69496.0,0.001642]
[1730567780389,0.77954185,69497.0,69496.0,0.001642]
[1730567780590,0.79298923,69497.0,69496.0,0.001642]
[1730567782750,0.79299362,69497.0,69496.0,0.001642]
[1730567784141,0.68329472,69497.0,69496.0,0.001642]
[1730567786284,0.79299362,69497.0,69496.0,0.001642]
[1730567787572,0.77954185,69497.0,69496.0,0.001642]
[1730567787989,0.79299954,69497.0,69496.0,0.001642]
[1730567789197,0.58257764,69497.0,69496.0,0.001642]
[1730567789755,0.69227654,69497.0,69496.0,0.001642]
[1730567790185,0.79299954,69497.0,69496.0,0.001642]
[1730567790403,0.58257764,69497.0,69496.0,0.001642]
[1730567790554,0.58257764,69497.0,69496.0,0.102367]
[1730567795018,0.58256651,69497.0,69496.0,0.102367]
[1730567795242,0.58256651,69497.0,69496.0,0.001642]
[1730567795441,0.68328951,69497.0,69496.0,0.001642]
[1730567796867,0.58256651,69497.0,69496.0,0.001642]
[1730567797111,0.68328951,69497.0,69496.0,0.001642]
[1730567800487,0.79298841,69497.0,69496.0,0.001642]
[1730567800870,0.96968841,69497.0,69496.0,0.001642]
[1730567801921,0.95624185,69497.0,69496.0,0.001642]
[1730567803249,0.9696927,69497.0,69496.0,0.001642]
[1730567806843,0.95624185,69497.0,69496.0,0.001642]
[1730567807046,0.96970626,69497.0,69496.0,0.001642]
[1730567807408,0.95624185,69497.0,69496.0,0.001642]
[1730567807622,0.96970782,69497.0,69496.0,0.001642]
[1730567808878,1.10818512,69497.0,69496.0,0.001642]
[1730567809504,0.96970782,69497.0,69496.0,0.001642]
[1730567810974,0.95624185,69497.0,69496.0,0.001642]
[1730567811194,0.96971125,69497.0,69496.0,0.001642]
[1730567814858,0.96971022,69497.0,69496.0,0.001642]
[1730567818796,0.96970638,69497.0,69496.0,0.001642]
[1730567819008,0.95624185,69497.0,69496.0,0.001642]
[1730567819219,0.96970639,69497.0,69496.0,0.001642]
[1730567823130,0.86000749,69497.0,69496.0,0.001642]
[1730567823508,0.78030749,69497.0,69496.0,0.001642]
[1730567823936,0.89000639,69497.0,69496.0,0.001642]
[1730567825556,0.89000639,69497.0,69496.0,0.00158887]
[1730567827211,0.96600639,69497.0,69496.0,0.00158887]
[1730567828666,0.96601687,69497.0,69496.0,0.00158887]
[1730567828869,0.95254185,69497.0,69496.0,0.00158887]
[1730567829079,0.96601674,69497.0,69496.0,0.00158887]
[1730567829968,0.95254185,69497.0,69496.0,0.00158887]
[1730567830148,0.96601976,69497.0,69496.0,0.00158887]
[1730567830580,1.10449706,69497.0,69496.0,0.00158887]
[1730567830942,1.01092185,69497.0,69496.0,0.00158887]
[1730567832550,1.12062075,69497.0,69496.0,0.00158887]
[1730567832970,1.01092185,69497.0,69496.0,0.00158887]
[1730567834407,1.05400842,69497.0,69496.0,0.00158887]
[1730567836152,1.05401206,69497.0,69496.0,0.00158887]
[1730567836357,1.19248936,69497.0,69496.0,0.00158887]
[1730567836831,1.05401206,69497.0,69496.0,0.00158887]
[1730567837699,1.04053051,69497.0,69496.0,0.00158887]
[1730567837918,1.0540128,69497.0,69496.0,0.00158887]
[1730567838811,1.05401411,69497.0,69496.0,0.00158887]
[1730567839245,1.01092623,69497.0,69496.0,0.00158887]
[1730567839476,1.14940353,69497.0,69496.0,0.00158887]
[1730567839916,1.14940498,69497.0,69496.0,0.00158887]
[1730567840410,1.21403656,69497.0,69496.0,0.00158887]
[1730567841714,1.07555926,69497.0,69496.0,0.00158887]
[1730567843226,1.01092743,69497.0,69496.0,0.00158887]
[1730567843645,0.99744394,69497.0,69496.0,0.00158887]
[1730567843857,1.01092615,69497.0,69496.0,0.00158887]
[1730567844877,1.09710192,69497.0,69496.0,0.00158887]
[1730567846242,1.01092615,69497.0,69496.0,0.00158887]
[1730567847858,1.01174815,69497.0,69496.0,0.00158887]
[1730567850868,1.01174774,69497.0,69496.0,0.00158887]
[1730567852287,1.11946746,69497.0,69496.0,0.00158887]
[1730567852925,1.1195854,69497.0,69496.0,0.00158887]
[1730567853376,1.11958558,69497.0,69496.0,0.00158887]
[1730567854612,1.11958654,69497.0,69496.0,0.00158887]
[1730567854799,1.25528625,69497.0,69496.0,0.00158887]
[1730567855600,1.11958654,69497.0,69496.0,0.00158887]
[1730567861972,1.1061036,69497.0,69496.0,0.00158887]
[1730567862194,1.11959319,69497.0,69496.0,0.00158887]
[1730567862370,1.13308278,69497.0,69496.0,0.00158887]
[1730567862606,1.11959319,69497.0,69496.0,0.00158887]
[1730567862858,1.25807049,69497.0,69496.0,0.00158887]
[1730567865171,1.15023283,69497.0,69496.0,0.00158887]
[1730567865707,1.15023475,69497.0,69496.0,0.00158887]
[1730567867744,0.93575745,69497.0,69496.0,0.00158887]
[1730567867947,0.82605855,69497.0,69496.0,0.00158887]
[1730567868155,0.93575745,69497.0,69496.0,0.00158887]
[1730567868758,0.82605855,69497.0,69496.0,0.00158887]
[1730567869088,1.04362315,69497.0,69496.0,0.00158887]
[1730567869305,0.94662315,69497.0,69496.0,0.00158887]
[1730567873461,0.93313164,69497.0,69496.0,0.00158887]
[1730567873647,0.9466115,69497.0,69496.0,0.00158887]
[1730567873863,0.93313164,69497.0,69496.0,0.00158887]
[1730567874078,0.94661123,69497.0,69496.0,0.00158887]
[1730567874512,0.83874553,69497.0,69496.0,0.00158887]
[1730567875103,0.946556,69497.0,69496.0,0.00158887]
[1730567880215,0.94652949,69497.0,69496.0,0.00158887]
[1730567880754,0.9330499,69497.0,69496.0,0.00158887]
[1730567880953,0.94652265,69497.0,69496.0,0.00158887]
[1730567884664,1.25659995,69497.0,69496.0,0.00158887]
[1730567884860,1.25851489,69497.0,69496.0,0.00158887]
[1730567885068,1.14881599,69497.0,69496.0,0.00158887]
[1730567885782,0.279541,69485.0,69484.0,0.001642]
[1730567886003,1.0815315,69485.0,69484.0,0.001642]
[1730567886423,1.12645137,69485.0,69484.0,0.001642]
[1730567886832,1.23428284,69485.0,69484.0,0.001642]
[1730567887377,1.21269529,69485.0,69484.0,0.001642]
[1730567888418,1.12645137,69485.0,69484.0,0.001642]
[1730567889381,1.19108597,69485.0,69484.0,0.001642]
[1730567890434,1.30867665,69485.0,69484.0,0.001642]
[1730567891282,1.24404205,69485.0,69484.0,0.001642]
[1730567891484,1.33028597,69485.0,69484.0,0.001642]
[1730567891805,1.21269529,69485.0,69484.0,0.001642]
[1730567892427,1.12645137,69485.0,69484.0,0.001642]
[1730567892646,1.13177814,69485.0,69484.0,0.001642]
[1730567894369,1.19635908,69485.0,69484.0,0.001642]
[1730567895159,1.13177814,69485.0,69484.0,0.001642]
[1730567895358,1.31633779,69485.0,69484.0,0.001642]
[1730567895820,1.31631193,69485.0,69484.0,0.001642]
[1730567896157,1.32975869,69485.0,69484.0,0.001642]
[1730567896352,1.3163118,69485.0,69484.0,0.001642]
[1730567899462,1.30286504,69485.0,69484.0,0.001642]
[1730567899680,1.31630874,69485.0,69484.0,0.001642]
[1730567900288,1.13174909,69485.0,69484.0,0.001642]
[1730567902530,1.08682922,69485.0,69484.0,0.001642]
[1730567902962,1.12986136,69485.0,69484.0,0.001642]
[1730567903171,1.01483569,69485.0,69484.0,0.001642]
[1730567903405,0.79300355,69485.0,69484.0,0.001642]
[1730567906943,0.77955985,69485.0,69484.0,0.001642]
[1730567915649,0.88925875,69485.0,69484.0,0.001642]
[1730567916287,0.77955985,69485.0,69484.0,0.001642]
[1730567923591,0.87895985,69485.0,69484.0,0.001642]
[1730567924259,0.92385058,69485.0,69484.0,0.001642]
[1730567924474,0.87895985,69485.0,69484.0,0.001642]
[1730567925146,0.98865875,69485.0,69484.0,0.001642]
[1730567926269,1.0021273,69485.0,69484.0,0.001642]
[1730567926490,1.04701926,69485.0,69484.0,0.001642]
[1730567926933,1.0021273,69485.0,69484.0,0.001642]
[1730567927801,1.04702104,69485.0,69484.0,0.001642]
[1730567928149,1.0021273,69485.0,69484.0,0.001642]
[1730567928379,1.04702224,69485.0,69484.0,0.001642]
[1730567928609,1.07661376,69485.0,69484.0,0.001642]
[1730567928835,1.04702488,69485.0,69484.0,0.001642]
[1730567929276,1.09008495,69485.0,69484.0,0.001642]
[1730567930372,1.04702488,69485.0,69484.0,0.001642]
[1730567930593,1.00212994,69485.0,69484.0,0.001642]
[1730567930830,1.04702809,69485.0,69484.0,0.001642]
[1730567931972,1.0335569,69485.0,69484.0,0.001642]
[1730567932192,1.11162203,69485.0,69484.0,0.001642]
[1730567932401,1.31582907,69485.0,69484.0,0.001642]
[1730567932625,1.25123896,69485.0,69484.0,0.001642]
[1730567932839,1.3373591,69485.0,69484.0,0.001642]
[1730567933049,1.20885206,69485.0,69484.0,0.001642]
[1730567934098,1.20885353,69485.0,69484.0,0.001642]
[1730567937172,1.12273339,69485.0,69484.0,0.001642]
[1730567937635,1.23048026,69485.0,69484.0,0.001642]
[1730567939223,1.21700377,69485.0,69484.0,0.001642]
[1730567939434,1.33968496,69485.0,69484.0,0.001642]
[1730567939669,1.23047825,69485.0,69484.0,0.001642]
[1730567940353,1.12273138,69485.0,69484.0,0.001642]
[1730567941853,1.12273018,69485.0,69484.0,0.001642]
[1730567945591,1.1092569,69485.0,69484.0,0.001642]
[1730567945825,1.12272874,69485.0,69484.0,0.001642]
[1730567946259,1.2477342,69485.0,69484.0,0.001642]
[1730567946446,1.26120578,69485.0,69484.0,0.001642]
[1730567947464,1.12272848,69485.0,69484.0,0.001642]
[1730567949800,1.1092569,69485.0,69484.0,0.001642]
[1730567950053,1.12272569,69485.0,69484.0,0.001642]
[1730567960380,1.12272853,69485.0,69484.0,0.001642]
[1730567965153,1.12073611,69485.0,69484.0,0.001642]
[1730567965317,1.10726448,69485.0,69484.0,0.001642]
[1730567965543,0.999558,69485.0,69484.0,0.001642]
[1730567965997,1.10726727,69485.0,69484.0,0.001642]
[1730567966213,1.10726831,69485.0,69484.0,0.001642]
[1730567966418,1.10727309,69485.0,69484.0,0.001642]
[1730567966786,1.1072713,69485.0,69484.0,0.001642]
[1730567967019,0.999558,69485.0,69484.0,0.001642]
[1730567967598,1.1092569,69485.0,69484.0,0.001642]
[1730567986714,1.0335569,69485.0,69484.0,0.001642]
[1730567988852,1.23882018,69485.0,69484.0,0.001642]
[1730567989055,1.1094569,69485.0,69484.0,0.001642]
[1730567991597,1.0335569,69485.0,69484.0,0.001642]
[1730567996968,0.923858,69485.0,69484.0,0.001642]
[1730567997391,0.824458,69485.0,69484.0,0.001642]
[1730567997604,0.9341569,69485.0,69484.0,0.001642]
[1730567998022,0.824458,69485.0,69484.0,0.001642]
[1730567998230,0.9341569,69485.0,69484.0,0.001642]
[1730567999314,0.824458,69485.0,69484.0,0.001642]
[1730567999537,0.93226303,69485.0,69484.0,0.001642]
[1730568001458,0.824458,69485.0,69484.0,0.001642]
[1730568001651,0.91070017,69485.0,69484.0,0.001642]
[1730568001851,0.84424472,69485.0,69484.0,0.001642]
[1730568002675,0.77955985,69485.0,69484.0,0.001642]
[1730568003088,0.84424472,69485.0,69484.0,0.001642]
[1730568003488,0.77955985,69485.0,69484.0,0.001642]
[1730568004341,0.88925875,69485.0,69484.0,0.001642]
[1730568005548,0.9323596,69485.0,69484.0,0.001642]
[1730568006404,0.93236052,69485.0,69484.0,0.001642]
[1730568007575,1.02035251,69485.0,69484.0,0.001642]
[1730568008409,0.88925875,69485.0,69484.0,0.001642]
[1730568008765,0.9754623,69485.0,69484.0,0.001642]
[1730568009220,1.02035152,69485.0,69484.0,0.001642]
[1730568009427,0.93414797,69485.0,69484.0,0.001642]
[1730568010230,1.10724797,69485.0,69484.0,0.001642]
[1730568011484,1.19345235,69485.0,69484.0,0.001642]
[1730568011713,1.10724797,69485.0,69484.0,0.001642]
[1730568020285,1.24572527,69485.0,69484.0,0.001642]
[1730568020502,1.10724797,69485.0,69484.0,0.001642]
[1730568025349,1.23653793,69485.0,69484.0,0.001642]
[1730568025575,1.10724797,69485.0,69484.0,0.001642]
[1730568026007,1.23653793,69485.0,69484.0,0.001642]
[1730568026288,1.10724797,69485.0,69484.0,0.001642]
[1730568027866,1.12070847,69485.0,69484.0,0.001642]
[1730568028090,0.2104479,69479.0,69474.0,0.21654552]
[1730568028328,0.42878952,69479.0,69474.0,0.21654552]
[1730568028750,1.04553581,69479.0,69469.0,0.001628]
[1730568028975,1.05453437,69479.0,69469.0,0.001628]
[1730568031032,1.04553269,69479.0,69469.0,0.001628]
[1730568033183,0.9593511,69479.0,69469.0,0.001628]
[1730568033638,0.91980335,69479.0,69469.0,0.001628]
[1730568033880,0.96467327,69479.0,69469.0,0.001628]
[1730568034974,0.9736718,69479.0,69469.0,0.001628]
[1730568036012,1.0598437,69479.0,69469.0,0.001628]
[1730568037277,0.9736718,69479.0,69469.0,0.001628]
[1730568037943,1.0598437,69479.0,69469.0,0.001628]
[1730568038158,1.05983822,69479.0,69469.0,0.001628]
[1730568038824,0.9736718,69479.0,69469.0,0.001628]
[1730568039082,0.96467327,69479.0,69469.0,0.001628]
[1730568041883,0.92967924,69479.0,69469.0,0.001628]
[1730568042093,1.05090283,69479.0,69469.0,0.001628]
[1730568042298,0.92967924,69479.0,69469.0,0.001628]
[1730568042498,0.96473658,69479.0,69469.0,0.001628]
[1730568042714,1.05089719,69479.0,69469.0,0.001628]
[1730568042924,0.95014819,69479.0,69469.0,0.001628]
[1730568043123,0.2104609,69470.0,69469.0,0.001628]
[1730568043343,0.81463819,69470.0,69469.0,0.001628]
[1730568045789,0.81463838,69470.0,69469.0,0.001628]
[1730568049192,0.81463955,69470.0,69469.0,0.001628]
[1730568052646,0.77958085,69470.0,69469.0,0.001628]
[1730568052869,0.814641,69470.0,69469.0,0.001628]
[1730568056301,0.81463962,69470.0,69469.0,0.001628]
[1730568057779,0.70494072,69470.0,69469.0,0.001628]
[1730568058191,0.46572347,69470.0,69469.0,0.386891]
[1730568058787,0.48819855,69470.0,69469.0,0.386891]
[1730568059238,0.46572347,69470.0,69469.0,0.386891]
[1730568059664,0.4306647,69470.0,69469.0,0.386891]
[1730568060088,0.46571031,69470.0,69469.0,0.386891]
[1730568060917,0.46571031,69470.0,69469.0,0.384891]
[1730568061516,0.48817544,69470.0,69469.0,0.384891]
[1730568061938,0.46571031,69470.0,69469.0,0.384891]
[1730568062232,0.4306647,69470.0,69469.0,0.384891]
[1730568062452,0.49715822,69470.0,69469.0,0.384891]
[1730568062685,0.50971473,69470.0,69469.0,0.384891]
[1730568063125,0.49715117,69470.0,69469.0,0.384891]
[1730568064493,0.49715117,69470.0,69469.0,0.288591]
[1730568065129,0.47469454,69470.0,69469.0,0.4965899]
[1730568065340,0.47469454,69470.0,69469.0,0.386891]
[1730568065774,0.47469098,69470.0,69469.0,0.386891]
[1730568066647,0.47469098,69470.0,69469.0,0.391891]
[1730568071383,0.465694,69470.0,69469.0,0.391891]
[1730568074101,0.47469095,69470.0,69469.0,0.391891]
[1730568074312,0.465694,69470.0,69469.0,0.391891]
[1730568075153,0.465694,69470.0,69469.0,0.295591]
[1730568075378,0.47469103,69470.0,69469.0,0.295591]
[1730568076524,0.47466322,69470.0,69469.0,0.295591]
[1730568080208,0.47466322,69470.0,69469.0,0.214391]
[1730568086309,0.47466322,69470.0,69469.0,0.209391]
[1730568086529,0.47466322,69470.0,69469.0,0.214391]
[1730568088309,0.47470737,69470.0,69469.0,0.214391]
[1730568095496,0.47472032,69470.0,69469.0,0.214391]
[1730568096115,0.4306647,69470.0,69469.0,0.214391]
[1730568097396,0.47472065,69470.0,69469.0,0.214391]
[1730568098921,0.47472065,69470.0,69469.0,0.21726961]
[1730568099139,0.4306647,69470.0,69469.0,0.21726961]
[1730568099348,0.47471846,69470.0,69469.0,0.214391]
[1730568100637,0.47471846,69470.0,69469.0,0.25749405]
[1730568100859,0.47471846,69470.0,69469.0,0.214391]
[1730568101299,0.47471846,69470.0,69469.0,0.25749405]
[1730568101728,0.47471846,69470.0,69469.0,0.21726961]
[1730568102354,0.47471846,69470.0,69469.0,0.26041064]
[1730568102843,0.47471846,69470.0,69469.0,0.21726961]
[1730568103730,0.47471846,69470.0,69469.0,0.44124407]
[1730568103949,0.47471846,69470.0,69469.0,0.43836546]
[1730568106514,0.47471846,69470.0,69469.0,0.37371088]
[1730568106613,0.47471846,69470.0,69469.0,0.56961589]
[1730568106857,0.46571705,69470.0,69469.0,0.46851088]
[1730568107310,0.44414659,69470.0,69469.0,0.46851088]
[1730568109918,0.44414659,69470.0,69469.0,0.46840554]
[1730568110358,0.44414659,69470.0,69469.0,0.37360554]
[1730568110572,0.4306647,69470.0,69469.0,0.37360554]
[1730568110800,0.44412929,69470.0,69469.0,0.37360554]
[1730568111491,0.44412929,69470.0,69469.0,0.48141849]
[1730568112154,0.44412929,69470.0,69469.0,0.37360554]
[1730568113026,0.44412929,69470.0,69469.0,0.48141029]
[1730568113671,0.44412929,69470.0,69469.0,0.37360554]
[1730568114366,0.44412929,69470.0,69469.0,0.37356522]
[1730568114586,0.44412533,69470.0,69469.0,0.37356522]
[1730568117216,0.4306647,69470.0,69469.0,0.37356522]
[1730568119043,0.44412188,69470.0,69469.0,0.37356522]
[1730568120444,0.44412188,69470.0,69469.0,0.45979032]
[1730568120954,0.54222188,69470.0,69469.0,0.45979032]
[1730568121170,0.56375398,69470.0,69469.0,0.45979032]
[1730568122277,0.56375398,69470.0,69469.0,0.45779032]
[1730568122502,0.56375398,69470.0,69469.0,0.214391]
[1730568122718,0.56375398,69470.0,69469.0,0.45976051]